bitfinex/quotes_ETHUSD_20220227
["timestamp","ask_amount","ask_price","bid_price","bid_amount"]
[1646003020187,0.396,2592.5,2590.9,0.0055346]
[1646003020188,0.75885481,2592.0,2590.9,0.0055346]
[1646003020390,0.75885481,2592.0,2589.9,0.01842666]
[1646003020391,0.01213685,2591.4,2589.9,0.01842666]
[1646003020588,0.01213685,2591.4,2588.6,0.0191327]
[1646003020589,0.01291704,2590.6,2588.7,7.340557]
[1646003020790,0.99943818,2591.0,2588.7,7.340557]
[1646003020995,0.1544,2590.9,2588.7,0.040557]
[1646003021191,3.8827,2591.5,2588.7,0.040557]
[1646003021192,3.818e-05,2590.0,2588.7,0.040557]
[1646003021390,3.818e-05,2590.6,2588.7,0.040557]
[1646003021694,0.01220073,2591.6,2589.2,4.9]
[1646003021695,0.1,2591.6,2589.2,4.9]
[1646003021891,0.396,2591.8,2590.0,4.9]
[1646003022133,0.99903818,2591.4,2590.1,0.5369]
[1646003022338,0.1,2592.0,2590.1,0.1542]
[1646003022639,0.99903818,2591.8,2590.1,0.1542]
[1646003022836,0.99903818,2591.8,2590.0,0.1542]
[1646003023136,0.1,2591.9,2590.0,0.1543]
[1646003023137,0.99903818,2591.6,2590.0,0.1543]
[1646003023339,3.5,2591.5,2590.0,0.1543]
[1646003023544,0.99903818,2591.4,2590.7,0.00098072]
[1646003023740,0.1542,2592.2,2590.7,0.00098072]
[1646003023938,0.99903818,2590.9,2590.7,0.00098072]
[1646003024341,4.49903818,2590.8,2590.1,0.00096]
[1646003024541,0.99903818,2590.8,2590.5,0.00098077]
[1646003024739,0.1,2590.9,2590.5,0.00098077]
[1646003024940,0.99903818,2590.6,2590.5,0.00098077]
[1646003025142,0.99903818,2590.6,2589.7,0.25]
[1646003025342,0.99903818,2590.8,2589.7,0.457]
[1646003025542,0.01200682,2592.1,2589.1,0.25]
[1646003025543,0.1,2590.2,2589.1,0.25]
[1646003025740,0.01284027,2590.8,2589.1,0.25]
[1646003025981,3.818e-05,2590.1,2589.1,0.96566]
[1646003026187,0.01292449,2591.6,2589.6,4.9]
[1646003026380,0.1,2591.7,2589.6,0.457]
[1646003026580,0.1,2591.7,2590.4,0.3827]
[1646003026785,0.1,2591.9,2590.4,12.0127]
[1646003026987,0.63819997,2592.5,2591.2,0.3827]
[1646003027189,0.63819997,2592.5,2591.1,11.63]
[1646003027190,0.5,2592.5,2591.4,0.3827]
[1646003027387,0.6,2592.5,2591.4,0.3827]
[1646003027587,3.5,2593.4,2591.4,0.3827]
[1646003027786,0.4042,2593.3,2591.3,0.3827]
[1646003027988,0.1,2593.0,2591.3,0.3827]
[1646003028188,0.1,2593.0,2592.1,0.00091891]
[1646003028392,0.00137658,2591.8,2591.0,3.5]
[1646003028591,0.00137658,2591.8,2590.9,1.72295]
[1646003028790,0.00137658,2591.8,2591.0,0.3827]
[1646003028987,0.00137658,2591.8,2591.2,0.3827]
[1646003029389,0.00137658,2591.8,2590.9,2.72295]
[1646003029637,1.4827,2593.0,2590.9,2.72295]
[1646003029638,0.01200003,2592.8,2590.9,2.72295]
[1646003029840,0.1,2591.4,2591.0,0.3827]
[1646003030045,0.964,2592.3,2591.1,0.00096]
[1646003030244,0.964,2592.3,2589.5,0.457]
[1646003030245,0.1,2591.7,2589.5,0.457]
[1646003030443,0.01266187,2591.5,2589.0,0.457]
[1646003030647,0.01266187,2591.5,2589.2,1.93096]
[1646003030843,0.1,2591.6,2589.4,0.3827]
[1646003031045,0.1,2591.6,2589.6,0.3827]
[1646003031242,0.1,2591.6,2589.8,0.3827]
[1646003031448,0.1,2591.6,2590.0,0.3827]
[1646003031648,0.5,2592.3,2590.4,12.23579927]
[1646003031649,0.1,2591.8,2590.4,12.23579927]
[1646003031844,0.1,2591.8,2590.6,0.3827]
[1646003032045,0.5,2592.3,2590.6,12.54078373]
[1646003032243,0.1,2592.1,2590.6,1.91078373]
[1646003032442,1.02300248,2592.3,2590.9,11.63]
[1646003032643,1.02300248,2592.3,2591.1,0.25235563]
[1646003033147,1.02300248,2592.3,2589.8,0.457]
[1646003033148,3.5,2592.2,2591.3,0.00086174]
[1646003033389,6.064,2591.4,2591.3,6.174e-05]
[1646003033589,5.464,2591.4,2591.3,6.174e-05]
[1646003033793,2.130519,2591.4,2591.3,6.174e-05]
[1646003033993,2.130519,2591.4,2588.8,0.00096]
[1646003033994,0.3827,2591.3,2589.0,0.3827]
[1646003034190,3.8827,2591.2,2589.2,0.3827]
[1646003034390,1.0,2590.3,2589.3,0.00096]
[1646003034591,0.964,2590.0,2589.3,0.00096]
[1646003034792,1.0,2590.5,2589.2,0.3827]
[1646003034990,1.0,2590.1,2589.3,0.00096]
[1646003035190,1.0,2590.1,2589.2,0.3827]
[1646003035391,0.964,2590.3,2589.5,0.03267957]
[1646003035591,0.012319,2590.2,2589.5,0.03267957]
[1646003035798,0.012319,2589.6,2589.5,0.03267957]
[1646003035996,0.012319,2589.6,2589.1,0.00096]
[1646003035997,1.012319,2589.6,2589.1,0.00096]
[1646003036194,0.012319,2589.5,2588.7,0.040557]
[1646003036395,1.0,2589.4,2588.7,0.040557]
[1646003036596,0.012319,2589.5,2588.7,0.040557]
[1646003036597,0.964,2588.8,2588.7,0.040557]
[1646003037444,0.964,2589.4,2588.7,0.040557]
[1646003037644,1.012319,2589.5,2588.7,0.040557]
[1646003037846,1.012319,2589.5,2588.6,0.0200927]
[1646003037847,0.964,2588.8,2588.6,0.0200927]
[1646003038050,0.964,2588.8,2588.4,0.00354088]
[1646003038051,3.5,2588.7,2588.4,0.00354088]
[1646003038251,0.976319,2588.5,2587.9,0.01416352]
[1646003038446,0.976319,2588.5,2587.4,0.019034]
[1646003038447,3.507,2588.4,2587.4,0.019034]
[1646003038645,0.976319,2587.5,2586.2,0.07834374]
[1646003038847,0.012319,2586.3,2586.2,0.02834374]
[1646003039050,0.012319,2586.3,2584.8,0.01711062]
[1646003039255,0.976319,2586.3,2584.8,0.01711062]
[1646003039450,1.0,2586.5,2584.8,0.01711062]
[1646003039451,0.012319,2585.9,2584.8,0.01711062]
[1646003039646,0.964,2585.8,2585.4,17.32265604]
[1646003039853,0.976319,2585.5,2585.4,15.13683229]
[1646003040053,0.976319,2585.5,2585.4,3.229e-05]
[1646003040351,5.476319,2585.5,2585.4,3.229e-05]
[1646003040557,4.5,2585.4,2583.6,0.00239552]
[1646003040756,6.38435519,2585.5,2581.7,0.5501]
[1646003040757,0.964,2583.4,2582.8,0.00479104]
[1646003040988,0.01265922,2584.3,2583.8,0.22521047]
[1646003041186,0.92466348,2584.4,2583.8,0.22521047]
[1646003041187,0.964,2583.9,2583.8,0.22521047]
[1646003041389,1.88866348,2583.9,2583.6,0.00958208]
[1646003041591,0.92466348,2583.7,2583.6,0.00958208]
[1646003041894,6.84566348,2583.7,2583.6,8.208e-05]
[1646003042088,14.56246348,2583.7,2583.6,8.208e-05]
[1646003042490,11.06246348,2583.7,2583.6,8.208e-05]
[1646003042994,9.60546348,2583.7,2583.6,8.208e-05]
[1646003043198,2.7771,2583.7,2583.6,8.208e-05]
[1646003043395,0.3496,2584.3,2583.6,8.208e-05]
[1646003043396,1.3496,2584.3,2583.6,8.208e-05]
[1646003043598,3.8240642,2585.5,2583.6,8.208e-05]
[1646003043599,1.07936348,2585.4,2583.8,4.07533652]
[1646003043797,0.6,2585.5,2583.9,1.93585]
[1646003044004,0.6,2585.5,2584.3,4.07533652]
[1646003044198,0.92466348,2586.6,2583.9,2.31855]
[1646003044199,0.457,2587.2,2584.4,0.23709326]
[1646003044402,0.92466348,2586.4,2584.4,0.01296813]
[1646003044641,4.3616,2587.1,2584.5,0.00096]
[1646003044842,3.5,2587.0,2584.5,0.00096]
[1646003045040,0.5,2586.3,2584.5,0.00096]
[1646003045241,0.92466348,2585.7,2584.3,0.25312906]
[1646003045442,0.92466348,2585.7,2583.2,4.53233652]
[1646003045443,0.92466348,2584.8,2583.6,0.18882117]
[1646003045643,1.0,2584.4,2583.6,8.208e-05]
[1646003046043,0.94129246,2585.0,2583.6,8.208e-05]
[1646003046243,0.92466348,2585.2,2583.6,0.01258792]
[1646003046442,3.5,2585.1,2583.7,0.1547]
[1646003046642,0.01268289,2585.6,2583.9,0.02252366]
[1646003046643,3.51268289,2585.6,2583.9,0.02252366]
[1646003046842,0.99929246,2584.8,2583.9,0.02252366]
[1646003047047,0.99929246,2584.8,2583.0,0.30042279]
[1646003047246,0.5,2585.2,2584.1,4.07533652]
[1646003047446,5e-05,2585.2,2584.2,0.23960885]
[1646003047643,0.13819997,2586.3,2584.2,0.62230885]
[1646003047847,0.13819997,2586.3,2584.3,0.1547]
[1646003047848,3.63819997,2586.3,2584.3,0.1547]
[1646003048047,1.0,2586.0,2583.8,0.4482701]
[1646003048250,4.59142089,2585.9,2583.6,0.01916416]
[1646003048480,1.0,2585.1,2583.6,0.01916416]
[1646003048680,0.6117,2586.4,2583.8,4.07533652]
[1646003048885,1.53636348,2586.4,2584.1,4.07533652]
[1646003049084,5.3811,2587.6,2584.9,0.21124818]
[1646003049085,0.92466348,2586.6,2584.9,0.21124818]
[1646003049284,0.1547,2586.5,2585.0,0.00096]
[1646003049587,0.457,2587.0,2585.0,0.00096]
[1646003049588,0.6115,2587.0,2585.0,0.00096]
[1646003049884,0.457,2587.0,2584.6,0.00096]
[1646003050086,5.01261305,2586.1,2584.6,0.00096]
[1646003050285,5.01261305,2586.1,2581.7,23.27026]
[1646003050286,0.00250334,2584.3,2582.7,0.968]
[1646003050484,0.92466348,2583.8,2582.3,0.1547]
[1646003050688,7.7401,2584.2,2582.2,0.0129753]
[1646003050885,3.5,2584.9,2582.2,0.0129753]
[1646003051086,0.457,2585.6,2582.2,0.0129753]
[1646003051087,0.26210303,2585.7,2583.7,5.0]
[1646003051286,0.57307349,2587.2,2583.7,5.0]
[1646003051287,0.1547,2585.6,2585.5,5.0]
[1646003051485,0.5291,2587.0,2584.6,0.01267917]
[1646003051486,0.1547,2586.2,2584.7,5.0]
[1646003051685,0.6812,2586.6,2585.2,5.0]
[1646003051885,0.79804,2587.1,2583.7,5.96765]
[1646003051886,0.457,2587.4,2585.9,5.0]
[1646003052151,0.457,2587.4,2585.9,4.9]
[1646003052152,7.8866,2587.3,2585.9,4.9]
[1646003052343,7.8866,2587.3,2585.3,5.0]
[1646003052344,7.732,2587.3,2585.3,5.0]
[1646003052544,7.732,2587.3,2585.2,0.26289142]
[1646003052545,7.732,2587.3,2585.9,4.9]
[1646003052843,7.732,2587.3,2586.0,3.6545]
[1646003053243,7.732,2587.3,2587.1,4.9]
[1646003053444,7.732,2587.3,2586.0,6.0545]
[1646003053647,0.1,2587.1,2586.1,0.00096]
[1646003053845,8.189,2587.3,2584.6,3.5]
[1646003053846,0.1,2586.3,2584.6,3.5]
[1646003054045,0.1,2586.3,2584.0,0.4]
[1646003054046,0.457,2586.3,2584.3,0.25]
[1646003054252,0.13819997,2586.4,2585.4,4.9]
[1646003054446,7.732,2587.3,2585.7,4.9]
[1646003054650,7.732,2587.3,2585.2,4.9]
[1646003054846,7.732,2587.3,2585.4,4.9]
[1646003055046,7.732,2587.3,2585.5,0.1545]
[1646003055247,7.732,2587.3,2585.4,5.0545]
[1646003055448,7.732,2587.3,2587.2,4.9]
[1646003055649,7.732,2587.3,2586.1,0.0124355]
[1646003055886,7.732,2587.3,2586.4,1.0]
[1646003056086,7.732,2587.3,2585.4,1.94651619]
[1646003056287,0.5,2586.6,2585.5,0.1546]
[1646003056590,7.732,2587.3,2586.0,4.9]
[1646003056789,7.732,2587.3,2585.4,1.93379]
[1646003056790,1.93282,2587.3,2586.2,4.0]
[1646003056988,1.93282,2587.3,2586.8,4.9]
[1646003057198,1.93282,2587.3,2586.4,0.1545]
[1646003057393,1.93282,2587.3,2586.4,4.9]
[1646003057590,1.93282,2587.3,2586.4,0.00096]
[1646003057893,0.1,2586.8,2585.5,0.00096]
[1646003058093,0.1,2586.8,2584.7,3.5]
[1646003058094,0.8381,2586.7,2586.1,0.00096]
[1646003058294,0.8381,2586.7,2584.5,3.5]
[1646003058295,0.00075755,2585.8,2584.5,3.5]
[1646003058494,0.00075755,2585.8,2584.3,4.9]
[1646003058698,0.00075755,2585.8,2584.4,0.1547]
[1646003058897,0.00075755,2585.8,2584.1,0.1547]
[1646003059099,0.00075755,2585.8,2585.0,4.9]
[1646003059295,0.00075755,2585.8,2584.1,0.1547]
[1646003059494,0.00075755,2585.8,2584.0,0.41229002]
[1646003059752,0.00075755,2585.8,2584.4,0.19602703]
[1646003059945,0.00075755,2585.8,2584.5,4.9]
[1646003060145,0.00075755,2585.8,2584.7,4.9]
[1646003060348,0.00075755,2585.8,2584.0,1.37976002]
[1646003060349,0.00075755,2585.8,2584.1,0.1547]
[1646003060550,0.707,2585.7,2584.1,0.1547]
[1646003060749,0.457,2585.7,2585.5,4.9]
[1646003060949,0.00075755,2585.8,2585.5,4.9]
[1646003061154,0.1547,2587.2,2584.4,0.3827]
[1646003061155,2e-05,2586.7,2585.7,7.9]
[1646003061453,3.2229965,2588.2,2585.7,7.9]
[1646003061454,0.457,2588.3,2586.6,4.9]
[1646003061650,7.7296,2588.2,2586.5,0.01231002]
[1646003061851,0.25,2587.9,2586.1,4.9]
[1646003062055,0.457,2587.8,2586.2,0.00096]
[1646003062251,0.457,2587.8,2586.6,4.9]
[1646003062449,0.457,2587.8,2586.0,0.00096]
[1646003062646,0.457,2587.8,2585.8,0.25]
[1646003062647,3.5,2587.7,2586.7,0.00096]
[1646003062848,0.457,2587.6,2585.9,0.00096]
[1646003063049,0.457,2587.6,2586.8,4.9]
[1646003063250,0.25,2587.6,2586.5,4.9]
[1646003063495,0.25,2587.6,2586.6,0.00096]
[1646003063693,7.7296,2588.2,2587.5,4.9]
[1646003063899,7.7296,2588.2,2585.8,11.84043404]
[1646003063900,7.7296,2588.2,2587.6,3.5]
[1646003064096,0.25,2588.1,2586.8,4.9]
[1646003064294,0.25,2588.1,2586.9,0.00096]
[1646003064496,7.7296,2588.2,2587.0,0.1545]
[1646003064694,7.9796,2588.2,2587.1,0.00096]
[1646003065099,7.9796,2588.2,2586.9,0.00096]
[1646003065100,7.7296,2588.2,2586.9,0.00096]
[1646003065296,7.7296,2588.2,2587.6,5.2]
[1646003065496,7.7296,2588.2,2587.6,4.9]
[1646003065700,7.7296,2588.2,2587.1,0.00096]
[1646003065897,0.25,2589.2,2588.1,4.9]
[1646003066100,10.0,2590.0,2588.5,4.9]
[1646003066298,9.75,2590.0,2588.5,5.9]
[1646003066497,9.75,2590.0,2588.6,3.73863761]
[1646003066702,1.61677696,2589.9,2588.7,0.01357183]
[1646003066898,0.56888595,2588.1,2587.5,0.12157428]
[1646003067138,0.56888595,2588.1,2588.0,4.9]
[1646003067545,0.13819997,2589.7,2587.7,4.9]
[1646003067743,0.25,2589.4,2586.8,4.9]
[1646003068040,0.25,2589.4,2586.6,0.1545]
[1646003068041,0.457,2589.3,2586.7,0.3827]
[1646003068239,3.5,2589.2,2586.7,0.3827]
[1646003068441,0.1545,2589.1,2586.7,0.1545]
[1646003068742,0.01264774,2588.8,2586.2,4.9]
[1646003068940,0.01264774,2588.8,2586.0,0.01214566]
[1646003068941,0.457,2588.7,2586.9,4.9]
[1646003069141,0.01235395,2588.2,2586.9,4.9]
[1646003069643,0.1545,2588.1,2586.2,4.9]
[1646003069845,0.1545,2588.1,2584.7,0.457]
[1646003069846,0.457,2588.0,2585.3,0.1545]
[1646003070046,0.457,2588.0,2585.5,4.9]
[1646003070047,0.1,2587.1,2585.5,4.9]
[1646003070245,4.0356,2587.9,2584.8,0.1545]
[1646003070246,0.1,2586.6,2584.8,4.9]
[1646003070443,0.457,2586.6,2584.8,4.9]
[1646003070645,0.29269997,2587.0,2585.7,4.9]
[1646003070905,0.457,2586.9,2585.8,8.4]
[1646003071106,0.457,2586.9,2586.1,4.9]
[1646003071504,0.457,2586.9,2586.4,4.9]
[1646003071704,0.457,2586.9,2586.4,3.17507857]
[1646003071905,0.457,2586.9,2585.7,3.17507857]
[1646003072114,0.457,2586.9,2586.7,3.17507857]
[1646003072310,0.457,2587.6,2585.5,3.51244084]
[1646003072508,0.457,2587.6,2586.5,3.17507857]
[1646003072712,0.457,2587.6,2586.6,0.00096]
[1646003073109,0.457,2587.6,2586.3,3.17507857]
[1646003073311,0.457,2587.6,2586.4,0.00096]
[1646003073507,0.457,2587.6,2586.1,3.17507857]
[1646003073710,0.457,2587.6,2586.2,3.50096]
[1646003073907,0.457,2587.6,2585.9,1.0]
[1646003073908,0.457,2587.6,2586.8,3.17507857]
[1646003074310,0.3827,2588.9,2587.0,3.17507857]
[1646003074311,0.457,2588.6,2587.0,3.17507857]
[1646003074509,0.457,2588.6,2587.1,0.00096]
[1646003074943,0.457,2588.6,2587.1,3.65546]
[1646003075144,0.457,2588.6,2587.2,0.00096]
[1646003075349,0.407,2588.6,2587.3,0.1545]
[1646003075549,1.82492143,2588.8,2587.4,0.00096]
[1646003075745,1.82492143,2588.8,2586.0,3.17507857]
[1646003075746,0.4045,2588.7,2587.1,0.00096]
[1646003075946,0.4045,2588.7,2585.3,0.0121973]
[1646003075947,0.457,2588.6,2587.0,3.17507857]
[1646003076146,0.1545,2588.5,2586.0,3.17507857]
[1646003076347,0.01278295,2587.7,2585.6,0.00096]
[1646003076548,2.50896184,2589.2,2589.0,2.93187708]
[1646003076747,2.5871448,2587.5,2586.4,0.01250058]
[1646003076947,0.457,2587.4,2586.3,0.00096]
[1646003077146,0.457,2587.4,2585.9,3.31327854]
[1646003077345,0.407,2587.4,2586.0,0.00096]
[1646003077546,2.5871448,2587.5,2586.0,0.00096]
[1646003078151,3.957,2587.4,2586.0,0.00096]
[1646003078399,8.27275,2587.3,2585.9,3.17507857]
[1646003078598,0.457,2587.2,2585.9,3.17507857]
[1646003078795,7.7319,2587.1,2586.0,0.00096]
[1646003079001,7.7319,2587.1,2586.0,0.38366]
[1646003079199,7.7319,2587.1,2586.1,0.00096]
[1646003079598,7.7319,2587.1,2586.1,3.17603857]
[1646003079801,3.0441448,2588.1,2586.6,0.3]
[1646003080003,0.5,2588.6,2586.9,0.01234014]
[1646003080209,1.76592903,2589.7,2586.9,0.01234014]
[1646003080210,4.22253453,2588.5,2588.2,1.3]
[1646003080406,9.75,2590.0,2588.5,11.63]
[1646003080608,0.3085,2590.2,2589.7,0.39475523]
[1646003080804,0.68404041,2591.1,2590.2,0.3827]
[1646003081004,0.91371688,2591.3,2590.2,0.3827]
[1646003081005,0.68404041,2591.3,2591.0,3.17507857]
[1646003081210,0.68404041,2591.6,2590.9,3.17507857]
[1646003081402,2.24145905,2592.7,2590.2,0.13819997]
[1646003081403,0.68404041,2592.1,2591.5,3.17507857]
[1646003081608,0.04433703,2591.5,2590.5,0.39543074]
[1646003081805,0.04433703,2591.5,2590.7,3.17507857]
[1646003082005,0.04376861,2591.4,2590.8,3.17507857]
[1646003082440,0.01298888,2592.4,2590.8,3.17507857]
[1646003082441,0.69702929,2592.4,2590.8,3.17507857]
[1646003082753,0.69702929,2592.4,2590.6,0.1542]
[1646003082754,0.68404041,2592.7,2592.1,3.17507857]
[1646003082946,0.68404041,2593.2,2592.5,3.17507857]
[1646003083148,2.51688333,2593.3,2592.3,3.17507857]
[1646003083342,43.88318595,2593.4,2592.7,3.17507857]
[1646003083542,43.88318595,2593.4,2592.4,3.31327854]
[1646003083745,43.88318595,2593.4,2591.6,3.17507857]
[1646003083746,5.57943614,2593.3,2591.6,3.17507857]
[1646003083944,0.68404041,2593.0,2591.6,3.17507857]
[1646003084144,0.68404041,2592.8,2590.0,0.43227509]
[1646003084343,0.25,2592.6,2590.9,3.17507857]
[1646003084543,0.2,2592.6,2590.9,3.17507857]
[1646003084746,0.68404041,2592.5,2590.9,3.17507857]
[1646003084948,3.5,2592.4,2590.9,3.17507857]
[1646003085144,0.6112,2592.3,2590.9,3.17507857]
[1646003085353,0.6112,2592.3,2589.8,3.17507857]
[1646003085354,0.25,2592.1,2589.8,3.17507857]
[1646003085548,0.01285422,2591.9,2589.8,3.17507857]
[1646003085752,0.25,2591.6,2589.5,0.3827]
[1646003086015,0.1544,2591.5,2589.9,5.0]
[1646003086203,0.1542,2592.3,2590.0,0.1663055]
[1646003086406,0.457,2592.2,2590.2,3.17507857]
[1646003086607,0.99684321,2592.4,2589.8,3.17507857]
[1646003086608,0.25,2592.0,2589.8,3.17507857]
[1646003086808,0.25,2592.0,2589.5,0.13819997]
[1646003086809,1.82492143,2591.7,2589.5,0.13819997]
[1646003087009,0.25,2591.3,2589.5,0.13819997]
[1646003087209,0.1544,2591.2,2589.8,3.17507857]
[1646003087613,0.25,2591.3,2589.8,3.17507857]
[1646003087814,0.6114,2591.2,2589.6,3.17507857]
[1646003088014,0.9114,2591.2,2589.5,0.13819997]
[1646003088419,1.01288607,2591.7,2589.5,0.13819997]
[1646003088420,1.14104041,2592.2,2591.1,3.17507857]
[1646003088617,0.5,2592.3,2590.4,0.01265973]
[1646003088618,0.25,2592.0,2590.4,0.01265973]
[1646003088813,0.25,2592.0,2591.1,3.12507857]
[1646003089017,0.5,2592.3,2591.6,3.12507857]
[1646003089217,0.5,2592.3,2590.7,0.39558193]
[1646003089413,0.5,2592.3,2591.5,3.12507857]
[1646003089414,0.75,2592.3,2591.5,3.12507857]
[1646003089640,0.75,2592.3,2590.9,0.3827]
[1646003089840,0.68404041,2593.3,2592.2,3.12507857]
[1646003090043,1.06791688,2593.6,2592.6,3.12507857]
[1646003090044,7.7138,2593.2,2592.6,3.12507857]
[1646003090647,7.7138,2593.2,2593.1,3.12507857]
[1646003090844,7.7138,2593.2,2592.1,0.13819997]
[1646003090845,7.7138,2593.2,2592.6,3.12507857]
[1646003091648,7.7138,2593.2,2593.1,3.12507857]
[1646003091847,7.7138,2593.2,2592.2,5.71961]
[1646003091848,1.17884598,2592.7,2592.2,5.71961]
[1646003092046,1.17884598,2592.7,2592.1,0.13819997]
[1646003092047,4.598e-05,2592.7,2592.1,0.13819997]
[1646003092249,4.598e-05,2592.7,2590.8,0.3827]
[1646003092448,4.598e-05,2592.7,2592.2,0.5]
[1646003092646,4.598e-05,2592.7,2591.4,5.0]
[1646003092647,0.1542,2592.6,2591.4,5.0]
[1646003092845,4.598e-05,2592.7,2591.4,5.41961]
[1646003093047,4.598e-05,2592.7,2591.4,0.41961]
[1646003093244,4.598e-05,2592.7,2591.1,0.01252197]
[1646003093486,0.1542,2593.4,2591.1,0.01252197]
[1646003093487,0.10424598,2593.4,2591.5,0.3827]
[1646003093701,0.00354364,2593.8,2592.0,0.3827]
[1646003093702,0.1542,2593.7,2592.0,0.3827]
[1646003093892,0.1542,2593.7,2592.0,0.80231]
[1646003094090,0.1542,2593.7,2592.0,0.41961]
[1646003094292,0.1542,2593.7,2592.5,5.0]
[1646003094693,0.00354364,2593.8,2592.9,0.01220481]
[1646003094892,0.00354364,2593.8,2593.0,0.13819997]
[1646003095095,0.00354364,2593.8,2592.4,0.67269]
[1646003095096,0.00354364,2593.8,2592.1,0.31216629]
[1646003095291,0.00354364,2593.8,2592.1,0.3]
[1646003095500,0.00354364,2593.8,2591.9,0.6827]
[1646003095694,0.00354364,2593.8,2591.4,0.41961]
[1646003095896,5.6112,2593.7,2591.4,0.71961]
[1646003096092,3.5,2593.6,2591.4,0.71961]
[1646003096296,0.6112,2593.5,2591.4,0.71961]
[1646003096596,0.6112,2593.5,2591.5,0.53707808]
[1646003096597,0.1542,2593.5,2591.5,0.53707808]
[1646003096894,0.00354364,2593.8,2592.1,5.0]
[1646003097142,0.00354364,2593.8,2592.2,0.57381]
[1646003097344,0.00354364,2593.8,2592.3,0.3827]
[1646003097547,0.00354364,2593.8,2592.2,0.71961]
[1646003097749,0.00354364,2593.8,2592.2,0.3]
[1646003097946,0.00354364,2593.8,2591.8,0.41961]
[1646003098151,0.1542,2593.7,2591.6,0.1542]
[1646003098349,5.0,2593.6,2591.6,0.1542]
[1646003098548,0.1542,2593.5,2591.5,0.13819997]
[1646003098748,0.38635,2593.4,2590.3,0.41961]
[1646003098951,0.3,2593.1,2590.3,0.41961]
[1646003099147,0.6112,2593.0,2590.3,0.41961]
[1646003099346,0.6112,2593.0,2590.3,0.80231]
[1646003099347,0.5612,2593.0,2590.3,0.80231]
[1646003099550,0.757,2593.0,2590.3,0.80231]
[1646003099748,0.457,2593.0,2590.9,0.39566777]
[1646003099949,0.1542,2593.3,2591.0,0.13819997]
[1646003100149,0.6112,2593.3,2591.0,0.13819997]
[1646003100750,0.9112,2593.3,2591.0,0.13819997]
[1646003100991,0.6112,2593.3,2591.0,0.13819997]
[1646003101191,0.3,2593.2,2591.0,0.13819997]
[1646003101398,0.1542,2593.1,2591.0,0.13819997]
[1646003101598,0.1542,2593.2,2591.0,0.13819997]
[1646003101795,0.3827,2593.0,2591.0,0.13819997]
[1646003101996,1.96190498,2592.9,2591.0,0.13819997]
[1646003102196,1.96190498,2592.9,2589.2,5.0]
[1646003102197,0.3827,2592.4,2590.1,0.01264632]
[1646003102393,5.0,2592.6,2590.1,0.01264632]
[1646003102394,0.3827,2592.2,2590.1,0.01264632]
[1646003102593,0.9939,2592.1,2590.1,0.01264632]
[1646003102794,0.457,2592.0,2590.3,3.5]
[1646003102994,0.1542,2591.9,2590.3,3.5]
[1646003103193,0.1542,2591.9,2590.3,3.91961]
[1646003103394,0.1542,2592.2,2590.3,3.5]
[1646003103795,3.8,2592.6,2591.3,0.0125586]
[1646003104200,3.8,2592.6,2591.1,3.5]
[1646003104395,4.1827,2592.6,2590.4,0.0128801]
[1646003104641,0.1542,2592.5,2590.3,0.3]
[1646003104840,0.3827,2592.4,2590.2,0.5]
[1646003105042,5.0,2592.1,2590.2,0.5]
[1646003105243,4.1112,2592.0,2590.2,0.5]
[1646003105445,0.6112,2592.0,2590.2,0.5]
[1646003105647,5.0,2591.2,2589.6,0.01213966]
[1646003105851,5.0,2591.2,2588.7,0.41961]
[1646003105852,5.0,2591.0,2588.7,11.63]
[1646003106048,0.9941,2590.9,2588.7,11.63]
[1646003106247,0.9941,2590.9,2588.8,0.13819997]
[1646003106549,1.2941,2590.9,2588.8,0.13819997]
[1646003106752,5.3827,2590.7,2588.8,0.13819997]
[1646003107048,0.6827,2590.5,2587.9,0.1544]
[1646003107251,0.6827,2590.5,2586.8,3.44761363]
[1646003107252,0.01261909,2589.9,2586.8,3.44761363]
[1646003107572,0.457,2589.8,2587.0,0.01250856]
[1646003107746,0.757,2589.8,2587.0,0.01250856]
[1646003107948,3.6545,2589.7,2587.1,0.1545]
[1646003108147,0.457,2589.6,2587.6,0.01220038]
[1646003108396,0.457,2589.6,2587.7,0.29269997]
[1646003108593,0.5,2589.4,2588.3,1.0]
[1646003108792,0.5,2589.4,2587.7,0.29269997]
[1646003108992,0.1545,2589.9,2587.7,0.29269997]
[1646003109195,0.457,2590.0,2587.7,0.29269997]
[1646003109407,0.1545,2590.5,2588.2,0.43163316]
[1646003109601,0.1545,2590.5,2588.9,0.01233251]
[1646003109801,1.38635,2591.4,2588.9,0.01233251]
[1646003109802,0.25,2591.0,2588.9,0.01233251]
[1646003109998,0.1544,2590.9,2588.9,0.01233251]
[1646003110198,0.4044,2591.3,2588.5,0.26235835]
[1646003110597,0.4044,2591.3,2588.5,0.25]
[1646003110598,5.0,2590.7,2588.5,0.25]
[1646003110799,0.1544,2590.6,2588.5,0.25]
[1646003110999,0.1544,2591.1,2588.5,0.25]
[1646003111200,0.3,2591.0,2588.5,0.25]
[1646003111402,0.1544,2590.9,2588.6,0.57401]
[1646003111601,0.1544,2591.2,2589.0,0.0128063]
[1646003111801,0.1544,2591.2,2589.3,0.25]
[1646003112147,1.19674605,2593.0,2589.6,0.0128339]
[1646003112347,1.19674605,2593.0,2590.4,0.3827]
[1646003112348,0.25,2592.6,2590.4,0.3827]
[1646003112550,0.51270564,2593.0,2590.5,0.52089997]
[1646003112551,0.5,2593.0,2590.5,0.52089997]
[1646003112747,5.0,2593.7,2590.9,0.25]
[1646003112748,0.1543,2593.3,2590.9,0.25]